bitfinex-derivatives/quotes_ETHF0:USTF0_20260307
["timestamp","ask_amount","ask_price","bid_price","bid_amount"]
[1772841600847,1.14429137,1979.5,1978.1,1.27896413]
[1772841602751,0.0048176,1979.6,1978.1,1.27896413]
[1772841603049,1.10498229,1979.6,1978.1,1.27896413]
[1772841603754,1.10498229,1979.6,1978.3,1.06967883]
[1772841604351,1.10498229,1979.6,1978.5,1.06967883]
[1772841604552,0.0048176,1979.6,1978.7,1.06967883]
[1772841606155,1.10498229,1979.6,1978.7,1.06967883]
[1772841606354,1.10498229,1979.6,1978.8,1.06967883]
[1772841610853,1.10498229,1979.6,1978.4,1.06967883]
[1772841616959,1.10498229,1979.6,1978.6,1.06967883]
[1772841630177,1.10016469,1979.4,1978.6,1.06967883]
[1772841637084,1.10016469,1979.4,1978.8,0.98199218]
[1772841642487,1.10016469,1979.4,1978.9,41.78199218]
[1772841646190,1.10016469,1979.4,1979.0,0.98199218]
[1772841646491,1.10016469,1979.4,1978.9,40.8]
[1772841646692,1.10016469,1979.4,1978.9,41.78199218]
[1772841649292,1.10016469,1979.4,1979.0,0.98199218]
[1772841650996,1.10016469,1979.4,1978.9,41.78199218]
[1772841652596,1.10016469,1979.4,1979.0,0.98199218]
[1772841656302,1.10016469,1979.4,1978.9,41.78199218]
[1772841659201,6.63233261,1979.3,1979.0,0.88593741]
[1772841659503,0.93138158,1979.3,1979.0,0.88593741]
[1772841660305,0.93138158,1979.3,1978.9,41.68593741]
[1772841661905,0.93138158,1979.3,1979.0,0.89243881]
[1772841671514,0.93138158,1979.3,1978.9,41.69243881]
[1772841672215,0.93138158,1979.3,1979.0,0.89243881]
[1772841675117,0.89944984,1979.5,1979.0,0.89243881]
[1772841675321,6.631922,1979.4,1979.0,0.89243881]
[1772841675516,0.89944984,1979.5,1979.0,0.89243881]
[1772841675716,6.6201602,1979.4,1979.0,0.89243881]
[1772841675917,0.89944984,1979.5,1979.0,0.89243881]
[1772841676115,6.6201602,1979.4,1979.0,0.89243881]
[1772841676318,0.89944984,1979.5,1979.0,0.89243881]
[1772841676618,6.61961981,1979.4,1979.0,0.89243881]
[1772841676918,0.89944984,1979.5,1979.0,0.89243881]
[1772841677116,6.6197986,1979.4,1979.0,23.38743881]
[1772841677423,0.89944984,1979.5,1979.1,0.89243881]
[1772841677624,6.61918098,1979.4,1979.1,0.89243881]
[1772841677925,0.89944984,1979.5,1979.1,0.89243881]
[1772841678120,7.52073849,1979.4,1979.1,0.89243881]
[1772841678316,0.89944984,1979.4,1979.0,22.495]
[1772841678518,0.89944984,1979.4,1979.0,23.38743881]
[1772841678821,0.89944984,1979.4,1979.1,0.89243881]
[1772841684627,0.89944984,1979.4,1979.0,22.495]
[1772841684823,0.89944984,1979.4,1979.0,23.38743881]
[1772841688330,0.89944984,1979.4,1979.1,0.89243881]
[1772841689832,0.89944984,1979.4,1979.0,22.495]
[1772841690131,0.89944984,1979.4,1978.7,23.73343881]
[1772841690336,0.89944984,1979.2,1978.7,23.73343881]
[1772841690835,0.89944984,1979.0,1978.5,22.857]
[1772841691034,0.89944984,1979.0,1978.4,0.7890833]
[1772841691235,0.89944984,1979.0,1978.4,41.5890833]
[1772841694238,0.89944984,1979.0,1978.5,0.82623012]
[1772841700042,0.89944984,1979.0,1978.4,41.60465542]
[1772841701949,0.89944984,1979.0,1978.4,40.8]
[1772841703050,0.89944984,1979.0,1978.3,23.64370799]
[1772841703649,0.89944984,1979.0,1978.3,64.44370799]
[1772841704751,0.89944984,1979.0,1978.4,0.77492766]
[1772841706153,0.89944984,1979.0,1978.3,63.661]
[1772841706352,0.89944984,1979.0,1978.3,64.42814064]
[1772841707255,0.89944984,1979.0,1978.1,0.76876723]
[1772841707755,0.89944984,1979.0,1978.3,0.76095089]
[1772841708352,0.89944984,1979.0,1978.2,40.8]
[1772841708548,0.89944984,1979.0,1978.1,0.00562312]
[1772841709052,0.89944984,1979.0,1978.1,40.80562312]
[1772841709247,0.80444007,1978.8,1978.1,0.00562312]
[1772841709453,0.80444007,1978.6,1977.8,0.75221575]
[1772841709751,0.80444007,1978.6,1978.0,0.75172802]
[1772841710455,0.80444007,1978.6,1978.0,0.75539154]
[1772841712256,0.80444007,1978.6,1978.0,0.00366352]
[1772841712659,0.80444007,1978.6,1978.0,0.76566961]
[1772841720763,7.57344007,1978.6,1978.0,0.76566961]
[1772841720967,0.80699699,1978.5,1978.0,0.76566961]
[1772841721169,1.05972699,1978.5,1978.0,0.00366352]
[1772841721359,0.80699699,1978.3,1977.8,0.72794371]
[1772841722265,0.80699699,1978.3,1977.8,0.73270978]
[1772841729276,0.80699699,1978.3,1977.3,23.288]
[1772841729571,0.80699699,1978.3,1977.4,0.67600428]
[1772841729771,0.80699699,1978.3,1977.5,41.47600428]
[1772841729971,0.80699699,1978.3,1977.6,0.67600428]
[1772841730273,0.80699699,1978.3,1977.6,0.68078043]
[1772841731176,0.80699699,1978.3,1977.6,0.00477615]
[1772841731473,0.80699699,1978.3,1977.6,0.67110502]
[1772841733370,0.80699699,1978.3,1977.6,0.00477615]
[1772841735776,0.80699699,1978.3,1977.6,0.64579798]
[1772841739381,0.80699699,1978.3,1977.6,0.00477615]
[1772841739584,0.81796025,1978.1,1977.6,0.00477615]
[1772841739780,0.82289599,1978.1,1977.6,0.00477615]
[1772841741081,0.82289599,1978.1,1977.4,40.8]
[1772841741287,0.82289599,1978.1,1977.5,0.61721561]
[1772841742084,0.82289599,1978.1,1977.5,0.62108812]
[1772841745382,0.82289599,1978.1,1977.5,0.00387251]
[1772841746387,0.82289599,1978.1,1977.3,0.60693792]
[1772841746589,0.81796025,1977.9,1976.8,0.60116103]
[1772841746787,0.81796025,1977.7,1976.8,0.60116103]
[1772841746987,0.81796025,1977.7,1977.0,0.60209449]
[1772841747586,0.81796025,1977.7,1977.0,0.60814782]
[1772841749890,0.81796025,1978.0,1977.0,0.60814782]
[1772841750190,0.81796025,1977.9,1977.1,0.58888871]
[1772841756690,0.71360642,1978.0,1977.3,0.56270007]
[1772841756896,0.71854216,1978.1,1977.3,0.56270007]
[1772841759995,0.00493574,1978.1,1977.5,0.5475625]
[1772841760186,0.00493574,1978.1,1977.6,0.5475625]
[1772841763600,0.71854216,1978.1,1977.6,0.5475625]
[1772841777606,0.65666543,1978.2,1977.6,0.5475625]
[1772841778707,0.66310892,1978.2,1977.6,0.5475625]
[1772841780110,0.66310892,1978.2,1977.8,0.49188402]
[1772841781116,0.65666543,1978.4,1978.0,0.64359747]
[1772841781311,0.65666543,1978.8,1978.0,0.64359747]
[1772841781710,0.65666543,1978.8,1978.2,0.64359747]
[1772841782107,0.6615049,1978.8,1978.2,0.64359747]
[1772841784715,0.00483947,1978.8,1978.2,0.64359747]
[1772841787219,0.00483947,1978.8,1978.4,0.65666428]
[1772841787419,0.00483947,1978.8,1978.4,0.66129849]
[1772841788120,0.6358509,1978.9,1978.4,0.66129849]
[1772841788820,0.6358509,1979.4,1978.4,0.66129849]
[1772841789019,0.64049953,1979.4,1978.4,0.66129849]
[1772841789811,0.64049953,1979.4,1978.6,0.65666428]
[1772841790016,0.64049953,1979.4,1978.7,0.65666428]
[1772841790412,0.00464863,1979.4,1978.7,0.65666428]
[1772841792017,0.6358509,1979.7,1978.9,0.65666428]
[1772841792619,0.6358509,1979.7,1979.1,0.65666428]
[1772841793218,0.64096227,1979.7,1979.0,41.45666428]
[1772841793420,0.64096227,1979.7,1979.0,40.8]
[1772841793925,0.64096227,1979.7,1979.0,41.45666428]
[1772841794420,0.64096227,1979.7,1979.1,0.65666428]
[1772841796322,0.64096227,1979.7,1979.0,40.8]
[1772841796628,0.64096227,1979.7,1979.0,41.45666428]
[1772841797425,0.64096227,1979.7,1979.1,0.65666428]
[1772841805834,0.6358509,1979.8,1979.1,0.65666428]
[1772841806337,0.6358509,1980.1,1979.1,0.65666428]
[1772841806832,0.64083213,1980.1,1979.1,0.65666428]
[1772841807234,0.64083213,1980.1,1979.3,0.65666428]
[1772841807432,0.64083213,1980.1,1979.5,0.65666428]
[1772841814847,0.64083213,1980.1,1979.4,23.618]
[1772841815050,0.64083213,1980.1,1979.2,0.63908481]
[1772841815344,0.65147045,1979.9,1979.2,0.63908481]
[1772841815545,0.65147045,1979.9,1979.1,23.725]
[1772841816046,0.65147045,1979.9,1979.1,24.36408481]
[1772841817749,0.65147045,1979.9,1979.2,0.63908481]
[1772841818747,0.65147045,1979.7,1979.2,0.63908481]
[1772841820944,0.65147045,1979.7,1979.1,23.725]
[1772841821142,0.65147045,1979.7,1979.0,41.43908481]
[1772841824848,0.65147045,1979.7,1979.0,40.8]
[1772841825054,0.65147045,1979.7,1979.1,0.63908481]
[1772841826956,0.65147045,1979.5,1979.0,41.43908481]
[1772841828753,0.65147045,1979.5,1978.7,0.63908481]
[1772841829360,0.65147045,1979.5,1978.8,41.43908481]
[1772841829758,0.65147045,1979.5,1978.9,0.63908481]
[1772841833064,0.65147045,1979.5,1978.8,40.8]
[1772841833065,0.65147045,1979.5,1978.8,41.43908481]
[1772841833862,0.65147045,1979.5,1978.8,0.63908481]
[1772841834957,4.20614129,1979.7,1978.6,23.859]
[1772841834958,0.65147045,1979.3,1978.6,24.49808481]
[1772841835360,0.65147045,1979.3,1978.6,65.29808481]
[1772841835564,0.65147045,1979.3,1978.3,24.59208481]
[1772841835867,0.65147045,1979.1,1978.4,0.64371902]
[1772841836059,0.65147045,1979.1,1978.5,40.8]
[1772841836660,0.65147045,1979.1,1978.4,0.64371902]
[1772841836961,0.65147045,1979.1,1978.4,0.00463421]
[1772841840160,6.62361666,1979.0,1978.4,0.00463421]
[1772841840366,0.64729125,1978.8,1978.1,0.64855494]
[1772841840763,0.64729125,1978.8,1977.7,0.64855494]
[1772841841372,0.64729125,1978.8,1977.7,0.65404552]
[1772841843871,0.64729125,1978.8,1977.9,0.65356167]
[1772841850277,0.61716327,1978.6,1977.9,0.65356167]
[1772841850580,0.62344435,1978.6,1977.9,0.65356167]
[1772841850980,0.62344435,1978.6,1978.0,40.8]
[1772841851179,0.62344435,1978.6,1978.1,0.65356167]
[1772841853583,0.62344435,1978.6,1977.9,0.65356167]
[1772841864297,0.61716327,1978.4,1977.9,0.65356167]
[1772841867001,0.61716327,1978.5,1977.9,0.65356167]
[1772841867194,6.64690839,1978.4,1977.9,0.65356167]
[1772841867394,0.61716327,1978.5,1977.9,0.65356167]
[1772841867594,7.2604335,1978.4,1977.9,0.65356167]
[1772841867793,0.61716327,1978.4,1977.9,0.65356167]
[1772841885815,0.00628108,1978.6,1977.9,0.65356167]
[1772841886016,7.29369209,1978.5,1977.9,0.65356167]
[1772841886218,6.65296716,1978.4,1977.9,0.65356167]
[1772841886417,0.64072493,1978.5,1977.9,0.65356167]
[1772841886617,7.29374397,1978.4,1977.9,0.65356167]
[1772841886917,0.64072493,1978.4,1977.9,0.65356167]
[1772841887913,0.64700601,1978.6,1977.9,0.65356167]
[1772841888113,6.65237629,1978.5,1977.9,0.65356167]
[1772841888318,0.00628108,1978.6,1977.9,0.65356167]
[1772841888522,6.65040494,1978.5,1977.9,0.65356167]
[1772841888713,0.00628108,1978.6,1977.9,0.65356167]
[1772841889620,0.64700601,1978.6,1977.9,0.65356167]
[1772841890818,0.64700601,1978.6,1977.7,40.80549058]
[1772841890819,0.64072493,1978.4,1977.8,0.64696271]
[1772841891015,0.64072493,1978.2,1977.8,0.64696271]
[1772841891914,0.64072493,1978.2,1977.7,0.00549058]
[1772841892418,0.64072493,1978.0,1977.7,7.767e-05]
[1772841892623,0.64072493,1978.0,1977.5,0.64696271]
[1772841893618,0.64072493,1978.0,1977.5,0.65340471]
[1772841894919,0.64072493,1977.8,1977.0,0.64696271]
[1772841895621,0.64072493,1977.8,1977.1,41.44696271]
[1772841895820,0.64072493,1977.8,1977.1,41.45333014]
[1772841896122,0.64072493,1977.8,1977.1,0.00636743]
[1772841896422,0.64072493,1977.6,1977.1,0.65333014]
[1772841897116,0.64072493,1977.6,1977.1,0.00636743]
[1772841897322,0.65634828,1977.4,1976.4,0.6561108]
[1772841897622,0.65634828,1977.6,1976.6,0.6561108]
[1772841897813,0.65634828,1977.6,1976.8,0.6561108]
[1772841898216,0.65634828,1977.6,1976.8,0.662667]
[1772841898916,0.65634828,1977.5,1976.8,0.662667]
[1772841899717,0.65634828,1977.7,1976.8,0.662667]
[1772841901421,0.65634828,1977.8,1976.9,0.6561108]
[1772841901617,0.65634828,1977.8,1976.8,24.2195562]
[1772841901618,0.65634828,1978.2,1977.3,0.6561108]
[1772841901814,0.65634828,1978.4,1977.4,0.62077285]
[1772841902015,0.60911688,1978.5,1977.6,0.62077285]
[1772841910929,0.61539796,1978.6,1977.6,0.62077285]
[1772841911930,0.61539796,1978.6,1977.8,0.62077285]
[1772841912337,0.00628108,1978.6,1978.0,0.62077285]
[1772841912632,0.60911688,1978.9,1978.0,0.62077285]
[1772841913434,0.61544007,1978.9,1978.0,0.62077285]
[1772841917235,0.61544007,1978.9,1978.2,0.62077285]
[1772841917432,0.61544007,1978.9,1977.5,6.398]
[1772841917433,0.61544007,1978.9,1977.5,30.542]
[1772841917634,0.61544007,1978.9,1977.9,0.62077285]
[1772841918439,0.61544007,1978.9,1977.9,0.62560633]
[1772841923440,0.61544007,1978.9,1978.0,41.42077285]
[1772841925642,0.61544007,1978.9,1978.1,0.62077285]
[1772841929345,0.60911688,1978.7,1978.1,0.62077285]
[1772841930046,0.60911688,1978.7,1977.9,0.62560633]
[1772841931249,0.60911688,1978.5,1977.9,0.62560633]
[1772841931747,0.60911688,1978.5,1977.9,0.00483348]
[1772841932050,0.00632319,1978.9,1977.2,0.25288]
[1772841932051,0.63486038,1978.3,1977.5,0.62393217]
[1772841932251,0.63486038,1978.3,1977.5,41.42393217]
[1772841932450,0.63486038,1978.3,1977.6,0.62393217]
[1772841932845,0.63486038,1978.3,1977.6,0.62749212]
[1772841933845,0.63486038,1978.5,1977.7,0.62393217]
[1772841934042,0.63486038,1978.6,1977.7,0.62393217]
[1772841937752,0.63486038,1978.4,1977.7,0.62393217]
[1772841940952,0.63486038,1978.4,1977.6,0.62749212]
[1772841941255,0.63486038,1978.2,1977.6,0.62749212]
[1772841944953,0.63486038,1978.2,1977.3,0.62393217]
[1772841945154,0.63486038,1978.0,1977.3,0.62393217]
[1772841946053,0.63486038,1978.0,1977.3,0.62776286]
[1772841947061,0.63486038,1978.0,1977.3,0.00383069]
[1772841947458,0.63486038,1978.0,1977.3,0.62776286]
[1772841950561,0.63486038,1978.0,1977.3,0.00383069]
[1772841952663,0.63486038,1978.0,1977.3,0.62776286]
[1772841958867,0.63486038,1978.0,1977.3,0.66530171]
[1772841960563,0.63486038,1978.0,1977.3,0.00383069]
[1772841964777,0.60448894,1977.8,1977.3,0.00383069]
[1772841964977,0.60448894,1977.8,1977.3,0.63911508]
[1772841973681,0.60448894,1978.0,1977.3,0.63911508]
[1772841973882,6.63768375,1977.9,1977.3,0.63911508]
[1772841974076,0.60448894,1978.0,1977.3,0.63911508]
[1772841974279,10.85801588,1978.3,1977.3,0.63911508]
[1772841974483,0.60448894,1978.1,1977.3,0.63911508]
[1772841975081,0.60448894,1978.3,1977.3,0.63911508]
[1772841975282,6.63169762,1978.2,1977.3,0.63911508]
[1772841975484,0.60448894,1978.3,1977.5,0.63528439]
[1772841976182,0.60448894,1978.4,1977.5,0.63528439]
[1772841976485,0.60448894,1978.6,1977.5,0.63528439]
[1772841976675,7.23195191,1978.5,1977.5,0.63528439]
[1772841976874,0.60448894,1978.5,1977.5,0.63528439]
[1772841978181,0.60448894,1978.5,1977.6,0.25284]
[1772841978379,0.60448894,1978.7,1977.7,0.63528439]
[1772841979487,0.60448894,1978.7,1977.9,0.63528439]
[1772841980284,0.61081213,1978.9,1977.9,0.63528439]
[1772841982785,0.61081213,1978.9,1978.0,41.43528439]
[1772841986589,0.61081213,1978.9,1978.1,0.63528439]
[1772841996691,0.00632319,1978.9,1978.1,0.63528439]
[1772841996891,0.61655322,1978.9,1978.1,0.63528439]
[1772842003196,0.61023003,1978.7,1978.1,0.63528439]
[1772842006603,0.61655322,1978.9,1978.1,0.63528439]
[1772842007004,0.00632319,1978.9,1978.1,0.63528439]
[1772842007999,0.00632319,1978.9,1978.1,0.88805439]
[1772842008301,0.00632319,1978.9,1978.3,0.66489329]
[1772842008495,0.0051105,1979.0,1978.3,0.66489329]
[1772842008701,0.61023003,1979.3,1978.3,0.66489329]
[1772842009503,0.61572775,1979.3,1978.3,0.66489329]
[1772842010807,0.61572775,1979.3,1978.7,0.66489329]
[1772842011008,0.61572775,1979.3,1978.7,0.66911686]
[1772842015001,0.00549772,1979.3,1978.9,0.66489329]
[1772842015907,0.61572775,1979.3,1978.9,0.66489329]
[1772842016204,0.00549772,1979.3,1978.9,0.66489329]
[1772842016405,0.61572775,1979.3,1978.9,0.66489329]
[1772842017509,0.00549772,1979.3,1978.9,0.66489329]
[1772842017710,0.61666964,1979.3,1978.9,0.66489329]
[1772842020614,0.61666964,1979.3,1978.7,0.6144017]
[1772842022510,0.00549772,1979.3,1978.9,0.65686396]
[1772842022711,0.66165734,1979.3,1978.9,0.65686396]
[1772842024115,0.66165734,1979.3,1978.7,0.00422357]
[1772842024308,0.66165734,1979.3,1978.8,0.65686396]
[1772842031514,0.00549772,1979.3,1978.8,0.65686396]
[1772842032213,0.66165734,1979.3,1978.8,0.65686396]
[1772842035319,0.00549772,1979.3,1978.8,0.65686396]
[1772842035719,0.65292652,1979.3,1978.8,0.65686396]
[1772842051626,0.00549772,1979.3,1978.8,0.65686396]
[1772842051828,0.6474288,1979.4,1978.8,0.65686396]
[1772842052131,6.60416041,1979.3,1978.8,0.65686396]
[1772842052331,0.6626482,1979.2,1978.8,0.65686396]
[1772842052833,0.66669267,1979.2,1978.8,0.65686396]
[1772842064342,1e-08,1979.2,1978.8,0.65686396]
[1772842064741,0.6626482,1979.5,1978.8,0.65686396]
[1772842064943,6.5812677,1979.4,1978.8,0.65686396]
[1772842065142,0.6626482,1979.5,1978.8,0.65686396]
[1772842065341,6.5811457,1979.4,1978.8,0.65686396]
[1772842065640,0.00515961,1979.4,1978.9,0.61382799]
[1772842067043,0.66780781,1979.4,1978.9,0.61382799]
[1772842067541,0.00515961,1979.4,1978.9,0.61382799]
[1772842070045,0.6626482,1979.7,1978.9,0.61382799]
[1772842070243,6.5634607,1979.6,1978.9,0.61382799]
[1772842070444,0.6626482,1979.7,1978.9,0.61382799]
[1772842070746,7.22537925,1979.6,1978.9,0.61382799]
[1772842070949,0.6626482,1979.6,1978.9,0.61382799]
[1772842071141,0.66811604,1979.6,1978.9,0.61382799]
[1772842074147,0.00546784,1979.6,1978.9,0.61382799]
[1772842075049,0.66811604,1979.6,1979.1,0.61382799]
[1772842080644,0.61864239,1979.7,1979.1,0.61382799]
[1772842080852,0.61864239,1979.9,1979.1,0.61382799]
[1772842081048,0.61864239,1979.9,1979.2,0.64770766]
[1772842081552,1.96920978,1980.0,1979.2,0.64770766]
[1772842081753,0.62388425,1980.0,1979.2,0.64770766]
[1772842083849,0.00524186,1980.0,1979.2,0.64770766]
[1772842086052,0.00524186,1980.0,1979.4,2.58312219]
[1772842086256,0.00524186,1980.0,1979.5,0.63327291]
[1772842086558,0.64664645,1980.3,1979.7,0.63327291]
[1772842086956,0.64664645,1980.3,1979.9,0.63327291]
[1772842087256,0.64664645,1980.7,1979.9,0.63327291]
[1772842087550,0.64664645,1980.7,1979.4,22.009]
[1772842087551,0.64664645,1980.4,1979.7,0.63327291]
[1772842090351,0.64664645,1980.4,1979.9,0.63327291]
[1772842095461,0.64664645,1980.6,1979.9,0.63327291]
[1772842095857,0.64664645,1980.6,1980.0,1.94772614]
[1772842096063,0.64664645,1980.6,1980.1,0.63327291]
[1772842096360,0.64664645,1980.6,1980.1,0.6396286]
[1772842099061,0.64664645,1980.6,1980.1,0.00635569]
[1772842099558,0.64664645,1980.6,1980.1,0.6396286]
[1772842133698,0.63339722,1980.7,1980.1,0.6396286]
[1772842134691,0.63339722,1980.7,1980.2,40.8]
[1772842134890,0.63339722,1980.7,1980.3,0.62602174]
[1772842136891,0.63339722,1980.7,1980.1,41.44922226]
[1772842137093,0.67028474,1980.5,1980.1,41.44922226]
[1772842139596,0.67028474,1980.5,1980.2,0.64286657]
[1772842139895,0.67028474,1980.6,1980.2,0.64286657]
[1772842140395,0.6752274,1980.7,1980.2,0.64286657]
[1772842140591,0.00494266,1980.7,1980.3,0.64286657]
[1772842140798,4.19175682,1980.9,1980.3,0.64286657]
[1772842140799,0.67028474,1980.9,1980.3,0.64286657]
[1772842141390,0.67028474,1980.9,1980.5,0.64286657]
[1772842141598,0.67028474,1981.2,1980.5,0.64286657]
[1772842141802,6.55380063,1981.1,1980.5,0.64286657]
[1772842142000,7.19794236,1981.0,1980.5,0.64286657]
[1772842142201,0.64414173,1981.0,1980.5,0.64286657]
[1772842150510,0.64414173,1981.1,1980.5,0.64286657]
[1772842150905,0.64414173,1981.1,1980.4,0.64071384]
[1772842151112,0.64414173,1980.9,1980.2,0.64071384]
[1772842151406,0.64414173,1980.9,1980.1,0.00635569]
[1772842152005,0.64414173,1980.7,1980.1,0.64706953]
[1772842153809,0.64414173,1980.7,1980.1,0.00635569]
[1772842159312,0.64414173,1980.5,1979.7,0.64071384]
[1772842159506,0.64414173,1980.3,1979.7,0.64071384]
[1772842159911,0.64414173,1980.3,1979.8,41.44071384]
[1772842160306,0.64414173,1980.3,1979.8,41.44493783]
[1772842163418,0.64414173,1980.3,1979.9,0.64071384]
[1772842164414,0.64414173,1980.3,1979.8,41.44493783]
[1772842164923,0.64414173,1980.3,1979.8,0.64493783]
[1772842181736,0.65800891,1980.4,1979.8,0.64493783]
[1772842186547,0.65800891,1980.4,1979.8,0.63735824]
[1772842195655,0.65800891,1980.5,1979.8,0.63735824]
[1772842198156,0.61181183,1980.7,1979.8,0.63735824]
[1772842198455,7.16941639,1980.6,1979.8,0.63735824]
[1772842199156,0.61181183,1980.6,1979.8,0.63735824]
[1772842200455,4.19175682,1981.0,1980.0,0.66366319]
[1772842200651,0.61181183,1980.7,1980.2,0.66366319]
[1772842200853,0.61181183,1980.7,1980.1,24.52866319]
[1772842201356,0.61181183,1980.7,1980.1,23.865]
[1772842201953,0.61181183,1980.7,1980.1,24.49044073]
[1772842202657,0.61181183,1980.7,1980.2,0.62544073]
[1772842216574,0.6532656,1980.8,1980.4,0.62544073]
[1772842223277,0.6532656,1980.9,1980.4,0.62544073]
[1772842225279,0.6532656,1980.9,1980.6,0.62544073]
[1772842226379,0.6532656,1981.1,1980.6,0.62544073]
[1772842226779,0.00356143,1981.2,1980.8,0.62544073]
[1772842227074,0.65682703,1981.2,1980.8,0.62544073]
[1772842228173,0.6532656,1981.6,1981.0,0.62544073]
[1772842228371,0.6532656,1981.6,1980.9,1.94692896]
[1772842228372,0.6532656,1981.6,1980.9,2.57236969]
[1772842228578,0.6532656,1981.6,1981.0,0.62544073]
[1772842229177,0.65857229,1981.6,1981.0,0.62544073]
[1772842230372,0.65857229,1981.6,1981.2,0.62544073]
[1772842230570,0.65857229,1981.6,1981.2,0.62974437]
[1772842231376,0.6532656,1981.8,1981.2,0.62974437]
[1772842231775,0.6532656,1981.8,1981.4,0.62544073]
[1772842232184,0.64123757,1981.9,1981.4,0.62544073]
[1772842232481,0.64637673,1981.9,1981.4,0.62544073]
[1772842232678,0.64123757,1982.1,1981.6,0.66599638]
[1772842232877,4.19175682,1982.6,1981.6,0.66599638]
[1772842233082,0.64123757,1982.5,1982.0,0.66599638]
[1772842233772,0.6476251,1982.5,1982.0,0.66599638]
[1772842234377,0.64123757,1982.8,1982.2,0.66599638]
[1772842234576,0.64123757,1982.8,1982.4,0.66599638]
[1772842234779,0.64123757,1982.8,1982.3,2.61292534]
[1772842234973,0.64123757,1982.8,1982.4,0.66599638]
[1772842235583,0.64123757,1982.6,1982.0,0.66599638]
[1772842237081,0.64123757,1982.6,1982.2,0.66599638]
[1772842238382,0.00542535,1982.8,1982.2,0.66599638]
[1772842238383,0.64123757,1982.7,1982.2,0.66599638]
[1772842244590,0.64123757,1982.7,1982.1,1.94692896]
[1772842244591,0.64123757,1982.4,1981.9,40.8]
[1772842244790,0.64123757,1982.4,1981.9,41.46599638]
[1772842245089,0.64123757,1982.4,1981.9,0.66599638]
[1772842247991,0.64123757,1982.4,1981.8,0.66599638]
[1772842248895,0.64123757,1982.2,1981.6,40.8]
[1772842249096,0.64123757,1982.2,1981.6,41.46599638]
[1772842251696,0.64123757,1982.2,1981.7,0.66599638]
[1772842265114,0.65640723,1982.1,1981.7,0.66599638]
[1772842266209,0.65640723,1982.1,1981.5,41.46271528]
[1772842266416,0.65640723,1982.1,1981.5,0.66271528]
[1772842267707,0.65640723,1981.9,1981.4,64.27471528]
[1772842268209,0.65640723,1981.9,1981.5,0.66271528]
[1772842272219,0.65640723,1982.2,1981.5,0.66271528]
[1772842272418,7.20329339,1982.1,1981.5,0.66271528]
[1772842272618,0.65640723,1981.9,1981.5,0.66271528]
[1772842273019,0.65640723,1982.2,1981.5,0.66271528]
[1772842273218,0.65640723,1982.0,1981.5,0.66271528]
[1772842274618,0.65640723,1982.2,1981.5,0.66271528]
[1772842279523,0.65640723,1982.0,1981.5,0.66271528]
[1772842289638,0.65640723,1982.0,1981.4,23.47471528]
[1772842289938,0.65640723,1982.0,1981.3,41.46271528]
[1772842290137,0.25227,1982.1,1981.3,0.66271528]
[1772842290138,0.65640723,1981.8,1981.3,0.66271528]
[1772842290341,0.65640723,1981.6,1981.2,0.66701892]
[1772842290536,0.65640723,1981.6,1981.2,41.46701892]
[1772842291130,0.65640723,1981.6,1981.2,0.66701892]
[1772842295937,0.63225842,1981.9,1981.2,0.66701892]
[1772842299245,0.63225842,1981.9,1981.2,0.00430364]
[1772842299445,0.63225842,1981.7,1981.0,0.68902607]
[1772842299845,0.63225842,1981.5,1980.9,0.68902607]
[1772842300540,0.63225842,1981.5,1980.9,0.69405208]
[1772842300843,0.63225842,1981.5,1980.9,0.00502601]
[1772842310545,0.63225842,1981.5,1980.9,0.69405208]
[1772842311148,0.63225842,1981.5,1980.9,0.00502601]
[1772842311352,0.63225842,1981.5,1980.9,0.69405208]
[1772842318266,4.44407682,1981.7,1980.9,0.69405208]
[1772842318267,0.68798106,1981.3,1980.9,0.69405208]
[1772842318468,0.69305802,1981.3,1980.9,0.69405208]
[1772842319964,0.69305802,1981.3,1980.9,0.00502601]
[1772842322771,0.69305802,1981.3,1980.5,0.64499338]
[1772842323765,0.69305802,1981.3,1980.5,0.64957826]
[1772842326878,0.00507696,1981.3,1980.8,0.64499338]
[1772842330079,0.00507696,1981.3,1980.9,0.64499338]
[1772842332988,0.64063425,1981.5,1980.9,0.64499338]
[1772842333885,0.64431882,1981.5,1980.9,0.64499338]
[1772842334883,0.00368457,1981.5,1981.0,1.94557951]
[1772842335077,0.00368457,1981.5,1981.1,0.64499338]
[1772842335681,0.64431882,1981.5,1981.1,0.64499338]
[1772842337079,0.64431882,1981.5,1980.8,41.44499338]
[1772842337379,0.64431882,1981.5,1980.9,0.64499338]
[1772842356498,0.00368457,1981.5,1981.1,0.69265581]
[1772842365803,0.66966516,1981.5,1980.9,0.69265581]
[1772842368405,0.66966516,1981.5,1980.7,0.69265581]
[1772842370303,0.66598059,1981.3,1980.7,0.69265581]
[1772842398226,4.21367534,1981.5,1980.7,0.69265581]
[1772842398527,6.57658563,1981.4,1980.7,0.69265581]
[1772842398732,6.57658563,1981.3,1980.7,0.69265581]
[1772842398933,0.66676691,1981.4,1980.7,0.69265581]
[1772842399134,6.57643992,1981.3,1980.7,0.69265581]
[1772842399333,0.66676691,1981.4,1980.7,0.69265581]
[1772842399535,6.57752523,1981.3,1980.7,0.69265581]
[1772842399733,0.66676691,1981.4,1980.7,0.69265581]
[1772842399935,6.57759184,1981.3,1980.7,0.69265581]
[1772842400135,0.66676691,1981.4,1980.7,0.69265581]
[1772842400334,6.57944092,1981.3,1980.7,0.69265581]
[1772842400635,0.66676691,1981.4,1980.7,0.69265581]
[1772842400830,6.57952952,1981.3,1980.7,0.69265581]
[1772842401035,0.66676691,1981.4,1980.7,0.69265581]
[1772842401234,6.57952725,1981.3,1980.7,0.69265581]
[1772842401535,0.66676691,1981.4,1980.7,0.69265581]
[1772842401737,6.57928908,1981.3,1980.7,0.69265581]
[1772842401934,0.66676691,1981.4,1980.7,0.69265581]
[1772842402134,6.57974822,1981.3,1980.7,0.69265581]
[1772842402335,0.66676691,1981.4,1980.7,0.69265581]
[1772842402537,6.57956205,1981.3,1980.7,0.69265581]
[1772842402736,0.66676691,1981.4,1980.7,0.69265581]
[1772842403035,11.32867534,1981.5,1980.7,0.69265581]
[1772842403036,7.24633004,1981.3,1980.7,0.69265581]
[1772842403234,0.66676691,1981.3,1980.7,0.69265581]
[1772842427262,0.64677837,1981.4,1980.7,0.69265581]
[1772842427463,0.00368457,1981.5,1980.7,0.69265581]
[1772842430761,0.65046294,1981.5,1980.7,0.69265581]
[1772842434367,0.00368457,1981.5,1980.9,0.66124232]
[1772842435368,0.65046294,1981.5,1980.9,0.66124232]
[1772842443978,0.00368457,1981.5,1980.9,0.66124232]
[1772842449179,0.6674566,1981.5,1980.9,0.66124232]
[1772842465293,0.66377203,1981.2,1980.7,0.66807162]
[1772842480399,0.6785411,1981.0,1980.6,41.51132691]
[1772842480703,0.6785411,1981.0,1980.5,0.71591179]
[1772842481102,0.6785411,1981.0,1980.5,41.51591179]
[1772842482003,0.6785411,1981.0,1980.6,0.71132691]
[1772842487311,0.6785411,1981.0,1980.5,0.71591179]
[1772842488008,0.6785411,1981.0,1980.5,0.00458488]
[1772842488207,4.56164761,1981.4,1980.2,0.71132691]